bitfinex-derivatives/quotes_SOLF0:USTF0_20241216
["timestamp","ask_amount","ask_price","bid_price","bid_amount"]
[1734349788776,2.3234,215.28,215.22,11.39996882]
[1734349788777,3.0039,215.35,215.22,11.39996882]
[1734349788977,3.0039,215.35,215.22,13.69996882]
[1734349789278,2.3236,215.26,215.22,13.69996882]
[1734349789878,2.3236,215.26,215.22,2.3]
[1734349790772,3.0039,215.35,215.22,2.3]
[1734349791072,2.3238,215.24,215.22,2.3]
[1734349791277,2.3238,215.24,215.2,11.39996882]
[1734349791578,2.3236,215.25,215.2,13.69996882]
[1734349792280,2.3234,215.27,215.2,16.02416882]
[1734349792676,1.5111,215.32,215.21,5.64471604]
[1734349792981,2.3231,215.3,215.23,13.72376882]
[1734349793374,1.95,215.29,215.22,11.39996882]
[1734349794177,7.43,215.29,215.22,11.39996882]
[1734349794473,7.43,215.29,215.26,2.3235]
[1734349794676,7.43,215.29,215.26,4.6035]
[1734349796186,7.43,215.29,215.26,2.28]
[1734349796888,7.43,215.29,215.26,4.6035]
[1734349797377,7.43,215.29,215.26,2.28]
[1734349798085,7.43,215.29,215.25,2.28]
[1734349798585,9.7533,215.29,215.25,2.28]
[1734349799282,3.71,215.28,215.22,11.39996882]
[1734349799480,3.71,215.28,215.22,13.67996882]
[1734349800286,9.4,215.28,215.22,13.67996882]
[1734349800689,9.4,215.28,215.22,16.00386882]
[1734349801383,9.4,215.28,215.23,5.03092172]
[1734349801589,9.4,215.28,215.22,16.00386882]
[1734349802482,11.7233,215.28,215.22,16.00386882]
[1734349802788,9.4,215.28,215.25,11.39996882]
[1734349803181,9.4,215.28,215.26,2.3234]
[1734349803389,9.4,215.28,215.27,2.28]
[1734349803884,9.4,215.28,215.27,9.63575623]
[1734349804988,7.0835,215.28,215.27,9.63575623]
[1734349805282,3.749,215.41,215.27,7.31235623]
[1734349805480,3.749,215.41,215.31,11.39996882]
[1734349805481,1.469,215.41,215.31,11.39996882]
[1734349805677,2.3222,215.39,215.32,4.6029]
[1734349806079,1.469,215.41,215.32,4.6029]
[1734349806285,9.53,215.39,215.32,4.6029]
[1734349806489,15.57,215.39,215.32,4.6029]
[1734349806687,2.3224,215.37,215.32,2.28]
[1734349807485,2.3225,215.36,215.32,2.28]
[1734349807684,15.57,215.39,215.26,12.92366882]
[1734349807885,26.96996882,215.39,215.29,2.28]
[1734349808085,2.3227,215.34,215.29,9.57523925]
[1734349808485,7.29523925,215.36,215.29,9.57523925]
[1734349809488,2.28,215.38,215.25,2.28]
[1734349809489,2.3233,215.29,215.25,2.28]
[1734349809786,7.29523925,215.32,215.24,7.29523925]
[1734349809986,2.3234,215.28,215.22,4.6039]
[1734349810184,2.3234,215.28,215.24,7.29523925]
[1734349810382,7.29523925,215.31,215.24,7.29523925]
[1734349810594,2.3235,215.27,215.24,7.29523925]
[1734349811685,7.29523925,215.29,215.21,7.29523925]
[1734349811988,1.4531,215.3,215.2,2.28]
[1734349812192,1.4531,215.3,215.21,5.04017269]
[1734349812392,1.4531,215.3,215.22,5.04017269]
[1734349812590,1.4531,215.3,215.21,2.324]
[1734349812790,1.4531,215.3,215.22,5.04137306]
[1734349813092,1.4531,215.3,215.21,4.604]
[1734349813389,2.3236,215.26,215.21,4.604]
[1734349814093,1.4531,215.3,215.22,5.04263539]
[1734349814289,1.4531,215.3,215.21,2.28]
[1734349815186,2.324,215.22,215.19,11.40595502]
[1734349815394,2.324,215.22,215.2,5.04667971]
[1734349815590,2.324,215.22,215.21,5.04667971]
[1734349815793,2.3241,215.21,215.16,15.28415502]
[1734349815991,2.3241,215.21,215.17,2.28]
[1734349816296,2.28,215.28,215.18,5.04674397]
[1734349816491,2.324,215.22,215.19,5.04674397]
[1734349816689,2.324,215.22,215.2,5.04674397]
[1734349816888,2.324,215.22,215.21,5.04674397]
[1734349817290,2.28,215.28,215.16,11.40595502]
[1734349817593,2.28,215.28,215.17,5.05152206]
[1734349817895,2.28,215.28,215.18,5.05152206]
[1734349818094,2.28,215.28,215.19,5.05152206]
[1734349818286,2.3243,215.2,215.16,13.68595502]
[1734349818491,2.3243,215.2,215.17,5.05275441]
[1734349818688,2.3243,215.2,215.18,5.05275441]
[1734349818886,2.3243,215.2,215.19,5.05275441]
[1734349819096,2.3243,215.2,215.16,13.68595502]
[1734349819297,2.3243,215.2,215.19,5.05276685]
[1734349820188,2.3243,215.2,215.19,5.05616827]
[1734349820397,2.28,215.28,215.19,5.05616827]
[1734349820595,2.79,215.2,215.16,11.40595502]
[1734349820795,2.79,215.2,215.17,5.05507612]
[1734349821099,2.79,215.2,215.18,5.05507612]
[1734349821298,2.79,215.2,215.19,5.05507612]
[1734349821695,8.75,215.2,215.19,5.05507612]
[1734349823500,11.0742,215.2,215.19,5.05507612]
[1734349824301,8.75,215.2,215.19,5.05507612]
[1734349824497,15.52,215.2,215.19,5.05507612]
[1734349824900,17.8442,215.2,215.19,5.05507612]
[1734349825500,15.52,215.2,215.19,2.64429426]
[1734349825697,15.52,215.2,215.13,2.28]
[1734349826104,2.3247,215.16,215.13,2.28]
[1734349826301,15.52,215.2,215.13,2.28]
[1734349826607,15.52,215.2,215.11,5.53136601]
[1734349827205,15.52,215.2,215.13,11.40595502]
[1734349828501,2.3246,215.17,215.13,11.40595502]
[1734349829698,2.3246,215.16,215.12,2.28]
[1734349829899,15.52,215.2,215.12,2.28]
[1734349830110,15.52,215.2,215.14,11.40595502]
[1734349830308,15.52,215.2,215.15,2.3247]
[1734349830309,17.8442,215.2,215.15,2.3247]
[1734349830511,15.52,215.2,215.14,11.40595502]
[1734349830906,15.52,215.2,215.17,2.3245]
[1734349831507,15.52,215.2,215.14,11.40595502]
[1734349831711,15.52,215.2,215.16,2.3246]
[1734349832305,15.52,215.2,215.14,11.40595502]
[1734349832509,15.52,215.2,215.15,2.3247]
[1734349833210,15.52,215.2,215.17,11.40595502]
[1734349833404,15.52,215.2,215.18,2.28]
[1734349833806,15.52,215.2,215.18,4.6044]
[1734349834002,15.52,215.2,215.19,7.30008306]
[1734349834712,8.2716,215.2,215.19,9.62438306]
[1734349834916,5.62730574,215.2,215.19,9.62438306]
[1734349835510,5.62730574,215.2,215.19,11.90438306]
[1734349837610,5.62730574,215.2,215.19,4.6043]
[1734349837811,5.62730574,215.2,215.19,11.90438306]
[1734349838914,5.62730574,215.2,215.19,4.6043]
[1734349839318,5.62730574,215.2,215.19,11.90438306]
[1734349840110,5.62730574,215.2,215.19,4.6043]
[1734349840309,5.62730574,215.2,215.1,0.18564]
[1734349840510,7.30008306,215.19,215.1,0.18564]
[1734349840710,5.62730574,215.2,215.15,7.30008306]
[1734349840909,4.49,215.21,215.15,7.30008306]
[1734349841111,4.49,215.21,215.12,4.605]
[1734349841112,4.49,215.21,215.12,2.28]
[1734349841317,4.49,215.21,215.18,7.30008306]
[1734349841714,2.3242,215.2,215.18,7.30008306]
[1734349841914,4.49,215.21,215.18,7.30008306]
[1734349842113,4.49,215.21,215.2,7.30008306]
[1734349843122,4.49,215.21,215.2,9.62428306]
[1734349843421,4.49,215.21,215.2,7.30008306]
[1734349843916,4.49,215.21,215.2,9.62428306]
[1734349844116,6.73,215.22,215.2,7.30008306]
[1734349844315,6.73,215.22,215.21,7.30008306]
[1734349844521,6.73,215.22,215.21,9.62418306]
[1734349845414,1.5819,215.35,215.22,7.30008306]
[1734349845618,1.5819,215.35,215.29,7.30008306]
[1734349845821,1.5819,215.35,215.3,2.28]
[1734349846322,1.4951,215.36,215.33,7.30008306]
[1734349846521,11.73,215.36,215.33,7.30008306]
[1734349846718,11.73,215.36,215.3,2.28]
[1734349846719,11.73,215.36,215.35,7.30008306]
[1734349846925,11.73,215.36,215.35,9.58008306]
[1734349848021,11.73,215.36,215.35,2.28]
[1734349850823,11.73,215.36,215.35,13.67053035]
[1734349851123,11.73,215.36,215.34,2.3226]
[1734349851325,11.73,215.36,215.35,2.28]
[1734349854829,11.73,215.36,215.34,2.3227]
[1734349855119,11.73,215.36,215.35,13.71053035]
[1734349856128,11.73,215.36,215.35,16.03313035]
[1734349858721,11.73,215.36,215.35,13.71053035]
[1734349859721,1.5392,215.44,215.35,13.71053035]
[1734349860023,1.5392,215.44,215.38,11.39053035]
[1734349860921,11.3392,215.44,215.38,11.39053035]
[1734349861123,11.3392,215.44,215.4,2.322]
[1734349861325,11.3392,215.44,215.41,2.32]
[1734349861924,11.3392,215.44,215.42,2.32]
[1734349862119,11.3392,215.44,215.38,11.39053035]
[1734349862324,11.3392,215.44,215.39,2.32]
[1734349862523,11.3392,215.44,215.4,2.32]
[1734349862732,11.3392,215.44,215.39,2.32]
[1734349863028,2.322,215.4,215.39,2.32]
[1734349863827,11.3392,215.44,215.33,5.44390103]
[1734349864029,2.3223,215.38,215.34,2.32]
[1734349864227,11.3392,215.44,215.33,5.44390103]
[1734349864628,11.3392,215.44,215.34,2.32]
[1734349864629,2.3224,215.37,215.34,2.32]
[1734349865529,1.519,215.4,215.29,11.39053035]
[1734349865729,1.5931,215.36,215.3,2.32]
[1734349866122,1.5931,215.36,215.29,5.69285418]
[1734349866326,1.5931,215.36,215.3,2.32]
[1734349866731,2.323,215.31,215.3,2.32]
[1734349866931,2.323,215.31,215.29,2.32]
[1734349867138,2.3231,215.3,215.27,2.32]
[1734349867432,12.98363035,215.36,215.25,2.32]
[1734349867830,2.3235,215.27,215.25,2.32]
[1734349868529,2.3235,215.27,215.24,2.32]
[1734349869235,2.3235,215.27,215.23,5.53445596]
[1734349869431,2.3235,215.27,215.24,2.32]
[1734349870030,2.3235,215.26,215.23,5.53445596]
[1734349870236,2.3235,215.26,215.23,2.32]
[1734349870435,2.3235,215.26,215.2,11.39053035]
[1734349870734,2.3235,215.26,215.23,2.32]
[1734349871333,11.39053035,215.33,215.23,2.32]
[1734349871537,2.3236,215.26,215.23,2.32]
[1734349871930,2.3237,215.25,215.23,2.32]
[1734349872131,11.39053035,215.33,215.15,53.12]
[1734349872331,11.39053035,215.33,215.18,11.39053035]
[1734349872532,2.3238,215.24,215.18,11.39053035]
[1734349872748,11.39053035,215.34,215.21,11.39053035]
[1734349872928,11.39053035,215.34,215.22,2.32]
[1734349873232,2.3229,215.32,215.22,2.32]
[1734349873436,1.5671,215.31,215.22,2.32]
[1734349873738,1.5517,215.3,215.25,2.3236]
[1734349873941,1.5517,215.3,215.24,11.39053035]
[1734349874437,2.3234,215.28,215.24,11.39053035]
[1734349875533,3.1188,215.35,215.24,11.39053035]
[1734349876244,2.3232,215.3,215.24,11.39053035]
[1734349876833,2.3232,215.29,215.24,11.39053035]
[1734349877040,3.1188,215.35,215.24,11.39053035]
[1734349877434,2.3235,215.27,215.22,2.32]
[1734349877835,2.32,215.34,215.21,11.39053035]
[1734349878037,2.3232,215.29,215.22,2.32]
[1734349878236,11.39053035,215.32,215.1,4.5462]
[1734349878544,11.39053035,215.32,215.17,11.39053035]
[1734349878744,2.3241,215.21,215.18,2.32]
[1734349878944,2.32,215.29,215.18,2.32]
[1734349879146,2.324,215.22,215.18,2.32]
[1734349879347,2.32,215.29,215.18,2.32]
[1734349880247,7.69,215.29,215.18,2.32]
[1734349880438,7.69,215.29,215.18,4.6444]
[1734349880645,7.69,215.29,215.0,2.32]
[1734349880646,11.39053035,215.25,215.0,2.32]
[1734349880943,2.32,215.24,215.1,11.39053035]
[1734349881449,2.3247,215.16,215.1,11.39053035]
[1734349881640,2.32,215.24,215.13,11.39053035]
[1734349881844,2.3245,215.17,215.13,11.39053035]
[1734349882140,2.32,215.24,215.13,11.39053035]
[1734349883147,2.32,215.24,215.11,2.32]
[1734349883148,5.44745273,215.22,215.11,2.32]
[1734349883350,2.3244,215.18,215.11,4.6452]
[1734349883740,5.44745273,215.22,215.11,2.32]
[1734349883942,2.3244,215.18,215.12,2.325]
[1734349884344,5.44745273,215.22,215.11,2.32]
[1734349884947,2.46,215.24,215.11,2.32]
[1734349885449,11.39053035,215.25,215.11,2.32]
[1734349885650,11.39053035,215.25,215.13,11.39053035]
[1734349885851,2.3243,215.2,215.14,2.3248]
[1734349887446,3.1911,215.24,215.13,11.39053035]
[1734349887447,2.3243,215.19,215.13,11.39053035]
[1734349889444,2.3243,215.19,215.13,13.71543035]
[1734349891552,2.325,215.13,215.08,5.55854549]
[1734349891944,2.46,215.21,215.08,5.55854549]
[1734349891945,1.5932,215.2,215.08,5.55854549]
[1734349892147,2.3249,215.14,215.08,7.88404549]
[1734349892752,2.3249,215.14,215.1,11.39053035]
[1734349893451,2.3249,215.14,215.1,13.85053035]
[1734349894351,2.3248,215.15,215.1,13.85053035]
[1734349894851,2.3249,215.14,215.1,13.85053035]
[1734349895156,6.5732,215.2,215.1,2.46]
[1734349895356,6.5732,215.2,215.08,5.55854549]
[1734349895557,2.46,215.19,215.08,8.01854549]
[1734349895756,2.3246,215.16,215.08,8.01854549]
[1734349895957,2.46,215.19,215.08,8.01854549]
[1734349896159,6.5732,215.2,215.08,8.01854549]
[1734349896760,6.5732,215.2,215.1,11.39053035]
[1734349896955,2.3247,215.15,215.1,11.39053035]
[1734349898659,2.3247,215.15,215.09,2.3253]
[1734349898859,2.3247,215.15,215.09,13.71583035]
[1734349899061,2.3249,215.14,215.09,11.39053035]
[1734349900561,2.3249,215.13,215.09,11.39053035]
[1734349901165,2.3249,215.13,215.09,13.85053035]
[1734349901359,2.3249,215.13,214.95,25.74253628]
[1734349901360,2.3259,215.05,214.9,6.43563407]
[1734349901556,11.39053035,215.16,214.74,6.43563407]
[1734349901557,11.39053035,215.02,214.74,6.43563407]
[1734349901756,17.00750077,214.99,214.94,5.65595199]
[1734349901962,17.00750077,214.99,214.73,6.43563407]
[1734349901963,2.3269,214.95,214.88,5.62128804]
[1734349902158,2.46,215.07,214.69,4.6594]
[1734349902159,16.73783538,214.94,214.69,11.09503407]
[1734349902361,5.61697042,214.95,214.74,3.0653]
[1734349902556,7.32138804,214.86,214.7,1.93153237]
[1734349902761,7.32138804,214.82,214.71,7.1179]
[1734349902963,27.91,215.07,214.71,7.32138804]
[1734349902964,7.32138804,214.8,214.71,7.32138804]
[1734349903162,7.32138804,214.72,214.54,6.43563407]
[1734349903363,2.32875877,214.71,214.58,6.1633]
[1734349903558,53.18,214.87,214.64,7.32138804]
[1734349903559,2.32875877,214.7,214.64,7.32138804]
[1734349903865,2.32875877,214.69,214.61,5.68554384]
[1734349904167,2.32875877,214.68,214.62,2.7]
[1734349904359,0.32875877,214.67,214.64,11.46690722]
[1734349904559,14.16690722,214.78,214.64,11.46690722]
[1734349904560,2.7,214.75,214.64,11.46690722]
[1734349904960,14.16690722,214.75,214.62,1.6056]
[1734349905465,11.46690722,214.78,214.63,11.46690722]
[1734349905668,11.46690722,214.81,214.66,11.46690722]
[1734349906165,5.52024657,214.77,214.66,2.7]
[1734349906368,2.7,214.78,214.66,2.7]
[1734349906866,6.56,214.81,214.68,18.3364904]
[1734349907366,6.56,214.81,214.69,1.6003]
[1734349907569,6.56,214.81,214.72,2.3293]
[1734349907570,12.29,214.81,214.72,2.3293]
[1734349907770,12.29,214.81,214.73,2.72]
[1734349907965,12.29,214.81,214.73,4.2783]
[1734349909167,12.29,214.81,214.71,20.6658904]
[1734349909372,30.6264904,214.81,214.61,18.3364904]
[1734349909567,12.29,214.81,214.65,18.3364904]
[1734349909768,12.29,214.81,214.66,3.1115]
[1734349910472,2.3285,214.8,214.68,2.3298]
[1734349910667,2.3285,214.8,214.67,2.72]
[1734349912574,2.3288,214.78,214.67,2.72]
[1734349912976,12.29,214.81,214.68,2.72]
[1734349913779,2.3288,214.78,214.68,5.0498]
[1734349913972,12.29,214.81,214.68,2.72]
[1734349914172,12.29,214.81,214.69,18.3364904]
[1734349914979,3.8756608,214.8,214.68,2.72]
[1734349915177,3.8756608,214.79,214.69,2.72]
[1734349915375,12.29,214.81,214.66,3.1115]
[1734349915574,12.29,214.81,214.67,2.72]
[1734349915774,2.329,214.76,214.67,5.0499]
[1734349916379,12.29,214.81,214.69,18.3364904]
[1734349916779,12.29,214.81,214.7,2.72]
[1734349917275,12.29,214.81,214.69,18.3364904]
[1734349917480,12.29,214.81,214.7,2.72]
[1734349917978,12.29,214.81,214.71,1.5181]
[1734349918578,12.29,214.81,214.72,2.72]
[1734349918777,0.87935225,214.86,214.85,2.328]
[1734349918977,18.3364904,215.11,214.86,18.3364904]
[1734349919183,18.3364904,215.16,214.86,5.47168666]
[1734349919475,18.3364904,215.03,214.87,3.77573736]
[1734349919676,1.579,215.02,214.87,2.92]
[1734349919877,8.173,215.02,214.87,2.92]
[1734349920188,12.653,215.02,214.9,18.3364904]
[1734349921174,9.51,215.02,214.94,18.3364904]
[1734349921379,9.51,215.02,214.86,5.47168666]
[1734349921573,9.51,215.02,214.89,18.3364904]
[1734349921774,9.51,215.02,214.93,20.6635904]
[1734349921971,9.51,215.02,214.94,2.92]
[1734349922179,9.51,215.02,214.95,2.92]
[1734349922376,2.3263,215.01,214.91,2.3273]
[1734349922576,9.51,215.02,214.92,2.92]
[1734349922776,9.51,215.02,214.92,2.9]
[1734349922777,1.5525,215.01,214.92,2.9]
[1734349922981,1.5525,215.01,214.88,18.3364904]
[1734349923182,1.5525,215.01,214.89,2.9]
[1734349923383,1.5525,215.01,214.92,18.3364904]
[1734349923680,1.5525,215.01,214.93,2.9]
[1734349924584,9.51,215.02,214.93,2.9]
[1734349925481,9.51,215.02,214.92,18.3364904]
[1734349925676,9.51,215.02,214.93,2.9]
[1734349926076,9.51,215.02,214.96,18.3364904]
[1734349926277,9.51,215.02,214.86,5.47168666]
[1734349926480,2.3263,215.0,214.88,18.3364904]
[1734349926679,9.51,215.02,214.88,18.3364904]
[1734349927281,9.51,215.02,214.92,18.3364904]
[1734349927481,9.51,215.02,214.93,2.9]
[1734349927785,9.51,215.02,214.96,18.3364904]
[1734349929579,9.51,215.02,214.93,2.9]
[1734349929984,2.3269,214.95,214.87,3.8913]
[1734349930177,2.3269,214.95,214.88,2.9]
[1734349931187,9.51,215.02,214.88,2.9]
[1734349931387,2.327,214.94,214.88,2.9]
[1734349932082,2.3269,214.96,214.88,2.9]
[1734349932293,5.03,215.02,214.88,2.9]
[1734349932687,2.3268,214.96,214.89,2.3275]
[1734349933190,5.03,215.02,214.88,2.9]
[1734349933191,2.3266,214.98,214.9,2.3274]
[1734349933490,5.3,214.96,214.9,2.3274]
[1734349933889,5.3,214.96,214.89,2.3275]
[1734349934285,5.3,214.96,214.88,2.9]
[1734349934592,5.3,214.96,214.89,2.3274]
[1734349934783,5.3,214.96,214.88,2.9]
[1734349935083,5.3,214.96,214.89,2.3274]
[1734349935284,5.3,214.96,214.86,5.47168666]
[1734349936498,7.6268,214.96,214.88,2.3276]
[1734349936685,5.3,214.96,214.86,8.37168666]
[1734349937289,2.3271,214.93,214.86,10.69948666]
[1734349937793,11.71,214.96,214.86,8.37168666]
[1734349937990,2.3271,214.93,214.86,8.37168666]
[1734349938191,11.71,214.96,214.86,8.37168666]
[1734349938385,14.0369,214.96,214.87,2.3277]
[1734349938586,14.0369,214.96,214.86,8.37168666]
[1734349938587,11.71,214.96,214.86,8.37168666]
[1734349938987,11.71,214.96,214.91,2.3273]
[1734349940095,11.71,214.96,214.86,8.37168666]
[1734349940590,11.71,214.96,214.9,2.3273]
[1734349940788,11.71,214.96,214.86,8.37168666]
[1734349941292,2.3269,214.95,214.86,8.37168666]
[1734349941490,11.71,214.96,214.81,21.4291904]
[1734349941690,4.6209,214.95,214.81,19.9125904]
[1734349941890,2.3282,214.83,214.8,5.93345861]
[1734349942090,18.3364904,214.93,214.75,2.329]
[1734349942091,21.2364904,214.89,214.75,2.329]
[1734349942491,2.3281,214.84,214.73,21.2364904]
[1734349943395,2.3282,214.83,214.76,2.3289]
[1734349943592,2.9,214.89,214.78,5.56515297]
[1734349943992,2.328,214.85,214.78,5.56515297]
[1734349944490,2.328,214.85,214.78,7.89375297]
[1734349944886,2.328,214.85,214.78,5.56515297]
[1734349945096,2.3278,214.86,214.8,2.3284]
[1734349945296,4.6209,214.95,214.79,2.9]
[1734349945590,4.6209,214.95,214.81,18.3364904]
[1734349945796,11.71,214.96,214.85,18.3364904]
[1734349945991,11.71,214.96,214.86,2.9]
[1734349946195,11.71,214.96,214.89,2.3275]
[1734349946388,14.61,214.96,214.81,2.9]
[1734349946592,1.473,214.95,214.81,2.9]
[1734349946896,18.3364904,214.93,214.81,2.9]
[1734349947288,2.3278,214.86,214.81,2.9]
[1734349947487,2.9,214.9,214.78,5.56515297]
[1734349947688,2.3281,214.84,214.78,5.56515297]
[1734349948194,21.4375904,214.89,214.77,0.32133]
[1734349949493,2.3286,214.8,214.77,0.32133]
[1734349950593,8.1986,214.8,214.77,0.32133]
[1734349950794,2.3286,214.79,214.77,0.32133]
[1734349951702,5.87,214.8,214.67,2.86]
[1734349951903,1.5914,214.79,214.67,2.86]
[1734349952201,2.3289,214.76,214.69,2.3296]
[1734349952396,1.5914,214.79,214.67,2.86]
[1734349953005,2.3288,214.77,214.71,2.3293]
[1734349953196,1.5914,214.79,214.68,5.55216831]
[1734349953399,2.86,214.78,214.68,5.55216831]
[1734349953695,2.86,214.78,214.66,2.86]
[1734349953999,1.5914,214.79,214.68,18.3364904]
[1734349956101,1.5914,214.79,214.7,2.3295]
[1734349956597,2.3289,214.76,214.69,2.3297]
[1734349956798,3.1515,214.79,214.69,2.3297]
[1734349957002,2.86,214.78,214.64,21.4415904]
[1734349957196,2.86,214.78,214.64,21.1964904]
[1734349958095,3.1515,214.79,214.65,5.56674918]
[1734349958295,2.3288,214.77,214.7,2.3295]
[1734349958601,2.3288,214.77,214.65,5.56674918]
[1734349958602,3.1515,214.79,214.69,2.86]
[1734349959198,5.87,214.8,214.65,5.56674918]
[1734349959399,5.87,214.8,214.66,2.86]
[1734349959599,5.87,214.8,214.66,4.3494]
[1734349959798,2.3286,214.79,214.72,2.3292]
[1734349960303,8.1985,214.8,214.72,2.86]
[1734349960509,5.87,214.8,214.72,2.86]
[1734349960707,5.87,214.8,214.75,2.3289]
[1734349961008,5.87,214.8,214.72,2.86]
[1734349961604,5.87,214.8,214.67,1.6091]
[1734349961908,5.87,214.8,214.68,2.86]
[1734349962511,2.329,214.76,214.68,5.1897]
[1734349962709,5.87,214.8,214.68,2.86]
[1734349963109,2.3291,214.75,214.68,2.3297]
[1734349963310,2.3291,214.75,214.44,427.5590052]
[1734349963311,2.86,214.75,214.58,2.86]
[1734349963613,2.86,214.75,214.62,2.3304]
[1734349963809,18.3364904,214.73,214.58,2.86]
[1734349964010,18.3364904,214.73,214.57,18.3364904]
[1734349964211,4.7525,214.72,214.58,2.86]
[1734349964409,2.3299,214.68,214.62,2.3304]
[1734349964610,2.3299,214.68,214.58,2.86]
[1734349965306,4.7525,214.72,214.51,2.86]
[1734349965307,21.1964904,214.69,214.51,2.86]
[1734349965510,21.1964904,214.69,214.53,21.3956904]
[1734349965818,21.1964904,214.69,214.53,8.01048649]
[1734349965819,2.3304,214.62,214.53,8.01048649]
[1734349966011,21.1964904,214.69,214.53,5.67908649]
[1734349966411,10.8159146,214.68,214.53,5.67908649]
[1734349966611,4.15996715,214.67,214.53,5.67908649]
[1734349966907,7.01996715,214.66,214.53,5.67908649]
[1734349967113,10.8159146,214.65,214.53,8.53908649]
[1734349967307,10.8159146,214.64,214.53,8.53908649]
[1734349967509,18.3364904,214.69,214.53,8.53908649]
[1734349967510,13.1463146,214.63,214.55,2.3312]
[1734349967714,10.8159146,214.62,214.53,8.53908649]
[1734349968017,10.8159146,214.61,214.53,8.53908649]
[1734349968216,10.8159146,214.6,214.53,8.53908649]
[1734349968516,4.15996715,214.59,214.53,8.53908649]
[1734349968715,4.15996715,214.58,214.53,8.53908649]
[1734349968920,5.59,214.64,214.53,8.53908649]
[1734349969107,10.80569289,214.63,214.53,8.53908649]
[1734349969313,10.80569289,214.63,214.56,2.331]
[1734349969709,10.80569289,214.63,214.53,8.53908649]
[1734349970112,4.15603573,214.62,214.53,8.53908649]
[1734349970313,10.80569289,214.62,214.53,8.53908649]
[1734349970514,10.80569289,214.61,214.54,2.3312]
[1734349970709,10.80569289,214.6,214.53,8.53908649]
[1734349970914,10.80569289,214.59,214.53,5.67908649]
[1734349971116,10.80569289,214.58,214.53,5.67908649]
[1734349971314,4.15603573,214.57,214.53,5.67908649]
[1734349971618,4.15603573,214.56,214.53,5.67908649]
[1734349971809,5.59,214.64,214.53,5.67908649]
[1734349971810,4.15603573,214.55,214.53,5.67908649]
[1734349972011,5.65,214.57,214.53,5.67908649]
[1734349972313,4.15222911,214.56,214.53,5.67908649]
[1734349972520,4.15222911,214.55,214.53,8.01048649]
[1734349972718,5.65,214.57,214.53,8.01048649]
[1734349973017,4.15134123,214.56,214.53,5.67908649]
[1734349973316,5.65,214.57,214.53,5.67908649]
[1734349973518,4.15195012,214.56,214.54,2.3313]
[1734349973715,5.65,214.57,214.53,5.67908649]
[1734349973912,4.15113421,214.56,214.53,5.67908649]
[1734349974107,5.65,214.57,214.55,2.3311]
[1734349974316,4.14986297,214.56,214.55,2.3311]
[1734349974507,5.65,214.57,214.55,2.3311]
[1734349974720,10.79227924,214.56,214.55,2.3311]
[1734349974916,4.14986297,214.56,214.54,2.86]
[1734349975218,4.14986297,214.55,214.54,5.1913]
[1734349975513,10.79166422,214.56,214.54,5.1913]
[1734349976216,4.14986297,214.56,214.54,5.1913]
[1734349976422,10.79346061,214.55,214.54,2.86]
[1734349976819,10.79346061,214.55,214.46,4.579]
[1734349977017,10.78896058,214.54,214.46,4.579]
[1734349977217,10.78896058,214.53,214.46,4.579]
[1734349977412,10.78896058,214.52,214.48,5.63887703]
[1734349977716,10.78896058,214.51,214.49,2.86]
[1734349977912,4.151331,214.5,214.49,2.86]
[1734349978120,5.65,214.57,214.49,2.86]
[1734349978312,6.60361751,214.56,214.49,2.86]
[1734349978512,5.65,214.57,214.49,2.86]
[1734349979423,5.65,214.57,214.53,2.3313]